[Event "Germany Countries-chT Youth 2022"]
[Site "Wiesbaden"]
[Date "2022.10.02"]
[Round "3"]
[White "Besou, Hussain"]
[Black "Kieselbach, Jannik"]
[Result "1-0"]
[ECO "E15"]
[WhiteElo "2119"]
[BlackElo "1848"]
[Annotator "TA"]
[PlyCount "71"]
[EventDate "2022.09.28"]
[EventType "team-tourn"]
[EventRounds "7"]
[EventCountry "GER"]
[SourceTitle "playchess.com"]
[Source "ChessBase"]
[SourceQuality "1"]
[TimeControl "40/5400+30:1800+30"]

{[%evp 13,71,0,86,83,108,86,87,44,54,44,50,0,0,0,12,-29,-23,-27,-24,-40,-36,-39,27,32,23,26,41,41,70,63,77,77,118,114,155,150,139,130,254,248,416,422,416,432,429,415,408,407,405,396,420,383,380,382,368,368,478,470,5593,5581]} 1. d4 {[%emt 0:00:03]} Nf6 {[%emt 0:00:06]} 2. c4 {[%emt 0:00:09]} e6 {[%emt 0:00:07]} 3. Nf3 {[%emt 0:00:12]} b6 {[%emt 0:00:09]} 4. g3 {[%emt 0:00:08]} Bb7 {[%emt 0:00:12]} 5. Bg2 {[%emt 0:00:07]} c5 {[%emt 0:00:46]} 6. d5 {[%emt 0:02:12]} exd5 {[%emt 0:08:12]} 7. Nh4 {[%emt 0:00:16]} Qc7 {[%emt 0:06:21]} (7... g6 $11 {remains equal.}) 8. Nc3 {[%emt 0:04:27] And now Nb5 would win. E16: Queen's Indian: 4 g3 Bb7 5 Bg2 Bb4+.} a6 {[%emt 0:05:27] [#] Against Nb5} ({Not} 8... dxc4 9. Nb5 Qc8 10. Nf5 $1 Bxg2 11. Nbd6+ Bxd6 12. Nxd6+ Ke7 13. Nxc8+ Rxc8 14. Rg1 $16) 9. Nxd5 $146 {[%emt 0:00:20]} (9. Bg5 {is interesting.} dxc4 10. Bxf6 gxf6 11. O-O) ({Predecessor:} 9. cxd5 b5 10. Bg5 Qb6 11. e4 h6 12. Bxf6 Qxf6 13. O-O d6 14. f4 g6 15. e5 Qd8 {1-0 (26) Wendt,J (2352)-Pasko,S Ohrid 2009}) 9... Nxd5 {[%emt 0:01:52]} 10. Bxd5 {[%emt 0:00:09] White is better.} Bxd5 {[%emt 0:11:08]} 11. Qxd5 {[%emt 0:01:01]} Qc6 {[%emt 0:00:34]} 12. Qe5+ {[%emt 0:04:03]} Qe6 {[%emt 0:00:38]} 13. Qc3 {[%emt 0:00:48]} Nc6 {[%emt 0:02:35]} 14. Nf3 {[%emt 0:01:46]} h6 {[%emt 0:12:07]} 15. O-O {[%emt 0:21:03]} Be7 {[%emt 0:01:12][%cal Bf8e7,Be7f6,Bf6e5,Be5c7][%mdl 32]} 16. Be3 {[%emt 0:02:13]} ({Wrong is} 16. Qxg7 $2 Bf6 17. Qxh6 Rxh6 18. Bxh6 Qxc4 $19) 16... Bf6 {[%emt 0:00:29]} 17. Qc2 {[%emt 0:02:50]} Ne5 {[%emt 0:02:40]} ({Black should try} 17... O-O $15) 18. Nxe5 $11 {[%emt 0:01:19]} Bxe5 {[%emt 0:00:37]} 19. Rad1 {[%emt 0:01:27]} h5 {[%emt 0:02:52]} 20. Qe4 {[%emt 0:05:10]} Rb8 {[%emt 0:06:12]} 21. b3 {[%emt 0:05:53]} Bc7 {[%emt 0:06:17] White now steadily converts the win.} 22. Qf3 {[%emt 0:01:55] White has more active pieces. The black rooks are badly placed.} f6 {[%emt 0:12:24]} 23. Bf4 {[%emt 0:03:02]} Be5 {[%emt 0:10:18]} 24. Rd5 {[%emt 0:01:27]} d6 {[%emt 0:02:21]} 25. Rfd1 {[%emt 0:01:37] aiming for Bxe5.} Ke7 {[%emt 0:01:19] [#]} (25... Qf5 $16 {keeps fighting.}) 26. Bxe5 $1 $18 {[%emt 0:01:54]} ({Don't play} 26. Rxd6 $6 Bxd6 27. Bxd6+ Qxd6 28. Rxd6 Kxd6 29. Qd5+ Ke7 $18) 26... fxe5 {[%emt 0:02:41]} (26... dxe5 {was called for.} 27. Qd3 e4 28. Rd7+ Kf8) 27. Rxd6 {[%emt 0:01:24]} Qxd6 {[%emt 0:00:16]} 28. Rxd6 {[%emt 0:00:04]} Kxd6 {[%emt 0:00:10][%mdl 4096] Endgame KQ-KRR} 29. Qd5+ {[%emt 0:00:09]} Ke7 {[%emt 0:00:10]} 30. Qxe5+ {[%emt 0:00:10]} Kf7 {[%emt 0:00:07]} 31. Qf5+ {[%emt 0:00:49]} Ke7 {[%emt 0:00:38]} 32. Qg6 {[%emt 0:00:42]} Kf8 {[%emt 0:00:27]} 33. Qd6+ {[%emt 0:03:14]} Kf7 {[%emt 0:00:08]} 34. Qd7+ {[%emt 0:00:37]} Kf6 {[%emt 0:01:05]} 35. e4 {[%emt 0:00:12]} g6 {[%emt 0:00:32]} (35... h4 $142 36. gxh4 Ke5 37. Qd5+ Kf6) 36. f4 {[%emt 0:00:42] Weighted Error Value: White=0.09 (flawless) /Black=0.41} 1-0

[Event "Germany Countries-chT Youth 2022"]
[Site "Wiesbaden"]
[Date "2022.10.02"]
[Round "3"]
[White "Hassemeier, Mika"]
[Black "Chassard, Cedric"]
[Result "1/2-1/2"]
[ECO "A06"]
[WhiteElo "2095"]
[BlackElo "2042"]
[Annotator "TA"]
[PlyCount "42"]
[EventDate "2022.09.28"]
[EventType "team-tourn"]
[EventRounds "7"]
[EventCountry "GER"]
[SourceTitle "playchess.com"]
[Source "ChessBase"]
[SourceQuality "1"]
[TimeControl "40/5400+30:1800+30"]

{[%evp 16,42,0,5,16,11,10,-2,20,24,26,30,46,45,35,24,23,22,29,31,36,18,27,35,32,18,2,5,31]} 1. Nf3 {[%emt 0:00:01]} d5 2. e3 {[%emt 0:00:21]} Nf6 {[%emt 0:00:49]} 3. c4 {[%emt 0:00:10]} e6 {[%emt 0:00:38]} 4. Nc3 Be7 {[%emt 0:05:52]} 5. b3 {[%emt 0:01:47]} O-O {[%emt 0:00:33]} 6. Bb2 {[%emt 0:02:23]} b6 {[%emt 0:00:52]} 7. g3 {[%emt 0:00:19]} Bb7 {[%emt 0:02:16]} 8. Bg2 {[%emt 0:01:38]} c5 {[%emt 0:00:24]} 9. O-O {[%emt 0:00:13]} (9. cxd5 {is more complex.} Nxd5 10. Nxd5 Qxd5 11. O-O) 9... Qc8 {[%emt 0:12:23] The modern move. A14: English Opening: 1...e6 with b3 by White.} 10. Qe2 {[%emt 0:14:57]} Nc6 {[%emt 0:05:19]} 11. d3 {[%emt 0:04:01] [#]} dxc4 $146 {[%emt 0:03:22]} ({Predecessor:} 11... Rd8 12. Rac1 d4 13. exd4 Nxd4 14. Nxd4 cxd4 15. Ne4 Nxe4 16. Bxe4 a5 17. a3 Qd7 18. h4 {½-½ (55) Anton Guijarro,D (2650)-Leko,P (2693) Doha 2016}) 12. dxc4 {[%emt 0:11:42]} Rd8 {[%emt 0:03:43]} 13. Rad1 {[%emt 0:02:50]} Bf8 {[%emt 0:05:09]} 14. Rxd8 {[%emt 0:16:55]} (14. Ng5 {is more complex.} Be7 15. f4 Rxd1 16. Rxd1 Qf8 17. Nce4) 14... Qxd8 {[%emt 0:01:42]} 15. Rd1 {[%emt 0:00:46]} Qe7 {[%emt 0:01:02]} 16. e4 {[%cal Be3e4,Be4e5][%mdl 32]} Rd8 {[%emt 0:01:08]} 17. e5 {[%emt 0:07:11]} Ne8 {[%emt 0:02:48]} 18. h4 Rd7 {[%emt 0:07:35]} ({But not} 18... Nd4 19. Nxd4 Rxd4 20. Rxd4 cxd4 21. Nb5 $16) 19. Rxd7 {[%emt 0:23:11]} Qxd7 {[%emt 0:00:01]} 20. Qd1 {[%emt 0:01:59]} Qxd1+ {[%emt 0:00:32]} 21. Nxd1 {[%emt 0:00:08]} Nb4 {[%emt 0:03:56] Weighted Error Value: White=0.05 (flawless) /Black=0.07 (flawless)} 1/2-1/2

[Event "Germany Countries-chT Youth 2022"]
[Site "Wiesbaden"]
[Date "2022.10.02"]
[Round "3"]
[White "Lange, Jannis"]
[Black "Hänselmann, Hendrik"]
[Result "1-0"]
[ECO "B40"]
[WhiteElo "2085"]
[BlackElo "1989"]
[Annotator "TA"]
[PlyCount "139"]
[EventDate "2022.09.28"]
[EventType "team-tourn"]
[EventRounds "7"]
[EventCountry "GER"]
[SourceTitle "playchess.com"]
[Source "ChessBase"]
[SourceQuality "1"]
[TimeControl "40/5400+30:1800+30"]

{[%evp 9,139,0,0,-7,-12,-13,-4,-15,-14,-17,-4,-63,0,-64,-27,-35,-5,-16,-15,-14,0,0,0,0,0,0,0,-2,43,54,39,38,33,35,39,53,37,47,43,43,48,36,35,21,31,27,30,34,30,21,25,18,43,-5,-4,-12,0,-18,14,6,29,29,35,35,35,35,35,35,38,31,44,27,35,27,34,27,17,20,28,0,0,0,0,0,18,14,97,94,108,108,120,114,98,76,1651,1692,2213,2246,2035,2251,1464,1033,29975,29976,29976,29977,29977,29978,29978,29979,29979,29980,29980,29980,29980,29981,29981,29982,29983,29984,29986,29987,29993,29994,29994,29995,29995,29996,29996,29996,29998,29999]} 1. e4 {[%emt 0:00:02]} c5 {[%emt 0:00:05]} 2. Nf3 {[%emt 0:01:41]} e6 {[%emt 0:00:07]} 3. Nc3 {[%emt 0:03:06]} Nc6 {[%emt 0:00:14]} 4. Bb5 {[%emt 0:00:35]} Nge7 {[%emt 0:00:34]} 5. O-O {[%emt 0:00:21]} a6 {[%emt 0:00:17]} 6. Be2 {[%emt 0:00:39] B30: Sicilian: 2...Nc6 3 Bb5, lines without ...g6.} Nd4 {[%emt 0:04:15]} 7. d3 {[%emt 0:02:31]} Nec6 {[%emt 0:00:37]} 8. Re1 {[%emt 0:04:58] The position is equal.} Be7 {[%emt 0:02:57]} 9. Bf1 {[%emt 0:01:38]} O-O {[%emt 0:02:11] [#]} 10. Be3 $146 {[%emt 0:14:44]} (10. Nxd4 cxd4 11. Ne2) (10. g3 $11) ({Predecessor:} 10. Nb1 Nxf3+ 11. Qxf3 b5 12. c3 Bb7 13. Na3 Rc8 14. Nc2 f5 15. exf5 Rxf5 16. Qh3 {0-1 (57) Njili,K (2247)-Rooze,J (2338) Budapest 2010}) 10... Qc7 {[%emt 0:02:29]} (10... Nxf3+ 11. Qxf3 f5) (10... Nxf3+ $15 11. Qxf3 f5) 11. a4 {[%emt 0:09:43]} (11. Nd2 $11) 11... b6 {[%emt 0:03:46]} 12. g3 {[%emt 0:01:21]} Bb7 {[%emt 0:03:44]} 13. Bg2 {[%emt 0:00:12]} Rac8 {[%emt 0:04:35]} 14. Ne2 {[%emt 0:13:03][%cal Rf3d4]} Bf6 {[%emt 0:04:48]} 15. c3 {[%emt 0:00:50]} Nxf3+ {[%emt 0:03:42]} 16. Bxf3 {[%emt 0:00:06]} Ne5 {[%emt 0:04:03]} 17. Bg2 {[%emt 0:00:50]} c4 {[%emt 0:07:02]} 18. Nf4 {[%emt 0:04:15]} Nxd3 {[%emt 0:02:49]} 19. Nxd3 {[%emt 0:00:20]} cxd3 {[%emt 0:00:04]} 20. Qxd3 {[%emt 0:01:52]} Rfd8 {[%emt 0:01:41]} 21. Bf4 {[%emt 0:02:25]} Be5 {[%emt 0:00:54]} 22. Bg5 {[%emt 0:03:08]} f6 {[%emt 0:01:09]} 23. Be3 {[%emt 0:00:07]} Bd6 {[%emt 0:01:26]} 24. Rad1 {[%emt 0:03:11]} Be7 {[%emt 0:05:39]} 25. Qc2 {[%emt 0:02:17]} Bc5 {[%emt 0:07:33]} 26. Bf4 {[%emt 0:06:29]} e5 {[%emt 0:03:34]} 27. Qb3+ {[%emt 0:00:15]} Kh8 {[%emt 0:08:10]} ({Don't take} 27... d5 {[#]} 28. exd5 $1 Qd6 29. Be3 $16) 28. Be3 {[%emt 0:00:17]} d6 {[%emt 0:02:31]} 29. Rd2 {[%emt 0:14:48]} Bc6 {[%emt 0:06:53]} 30. h4 {[%emt 0:01:48]} Qb7 {[%emt 0:03:57]} 31. Rdd1 {[%emt 0:00:56]} (31. Qd1 $14 {might be stronger.}) 31... Qd7 $11 {[%emt 0:02:59] [#] ...Bxe3 is the strong threat.} 32. Ra1 {[%emt 0:03:41]} Rb8 {[%emt 0:02:55]} 33. Qc4 {[%emt 0:01:22]} b5 {[%emt 0:00:56]} 34. axb5 {[%emt 0:00:38]} Bxb5 {[%emt 0:00:09]} 35. Qd5 {[%emt 0:00:20]} Bc6 {[%emt 0:00:58]} 36. Qd2 {[%emt 0:00:08]} Qb7 {[%emt 0:01:51][%csl LRb2,LRe4]} 37. b4 {[%emt 0:00:29]} Bxe3 {[%emt 0:00:05]} 38. Rxe3 {[%emt 0:00:04]} Bb5 {[%emt 0:01:24]} 39. Qa2 {[%emt 0:02:35]} Rbc8 {[%emt 0:00:54]} 40. Qe6 {[%emt 0:00:21]} Bc4 {[%emt 0:01:13]} 41. Qf5 {[%emt 0:32:21]} Rc7 {[%emt 0:07:58]} 42. h5 {[%emt 0:00:00][%cal Oh5h6]} h6 {[%emt 0:01:10]} 43. Ra5 {[%emt 0:00:00]} Rcd7 {[%emt 0:00:49]} 44. Rd5 {[%emt 0:00:00]} Qc6 {[%emt 0:03:33]} 45. Qg6 {[%emt 0:00:00][%cal Og2h3]} Rc7 {[%emt 0:01:00]} (45... Bxd5 $2 46. exd5 Qc4 47. Be4 Qxe4 48. Rxe4 $18) 46. Ra5 {[%emt 0:00:00]} Bf7 {[%emt 0:03:38]} 47. Qf5 {[%emt 0:00:00]} Qc4 {[%emt 0:01:51]} (47... Qe8 $11) 48. Bf1 $16 {[%emt 0:00:00]} Qb3 {[%emt 0:00:53]} 49. Rxa6 {[%emt 0:00:00]} Rxc3 {[%emt 0:02:04]} 50. Rxc3 {[%emt 0:00:00]} Qxc3 {[%emt 0:00:07]} 51. Ra7 {[%emt 0:00:00][%cal Ba6a7,Ba7c7,Bc7c3][%mdl 32]} Bc4 {[%emt 0:05:16][%mdl 8192] This costs Black the game.} (51... Kg8 $16) 52. Rc7 $18 {[%emt 0:00:00]} ({Don't go for} 52. Rxg7 $2 Kxg7 53. Qg6+ Kf8 54. Qxf6+ Ke8 $19) 52... Be6 {[%emt 0:00:41]} 53. Rxc3 {[%emt 0:00:00]} Bxf5 {[%emt 0:00:05]} 54. exf5 {[%emt 0:00:00][%mdl 4096] Endgame White threatens b5 and mate. KRB-KR} d5 {[%emt 0:00:07]} 55. f3 {[%emt 0:00:00] Hoping for b5.} d4 {[%emt 0:00:12]} 56. Rb3 {[%emt 0:00:00] White mates.} Kg8 {[%emt 0:00:10]} 57. b5 {[%emt 0:00:00]} Kf7 {[%emt 0:00:05]} 58. b6 {[%emt 0:00:00]} Ke7 {[%emt 0:01:28]} 59. b7 {[%emt 0:00:00]} Rb8 {[%emt 0:00:37]} 60. Bd3 {[%emt 0:00:00]} Kd6 {[%emt 0:00:20]} 61. Kf2 {[%emt 0:00:00]} Kc5 {[%emt 0:00:14]} 62. Ke2 {[%emt 0:00:00]} Kd6 {[%emt 0:00:25]} 63. Be4 {[%emt 0:00:00]} Kc5 {[%emt 0:00:30]} 64. Ra3 {[%emt 0:00:00]} Kc4 {[%emt 0:00:09]} 65. Ra8 {[%emt 0:00:00]} d3+ {[%emt 0:00:21]} 66. Bxd3+ {[%emt 0:00:00]} Kd4 {[%emt 0:00:11]} 67. Rxb8 {[%emt 0:00:00]} e4 {[%emt 0:00:15]} 68. Rd8+ {[%emt 0:00:00]} Kc3 {[%emt 0:00:15]} 69. b8=Q {[%emt 0:00:00]} exf3+ {[%emt 0:00:29]} 70. Ke3 {[%emt 0:00:00] Weighted Error Value: White=0.09 (flawless) /Black=0.22 (precise)} 1-0

[Event "Germany Countries-chT Youth 2022"]
[Site "Wiesbaden"]
[Date "2022.10.02"]
[Round "3"]
[White "Leonard, Timo"]
[Black "Pubantz, Jan"]
[Result "1/2-1/2"]
[ECO "D14"]
[WhiteElo "2067"]
[BlackElo "2273"]
[Annotator "TA"]
[PlyCount "127"]
[EventDate "2022.09.28"]
[EventType "team-tourn"]
[EventRounds "7"]
[EventCountry "GER"]
[SourceTitle "playchess.com"]
[Source "ChessBase"]
[SourceQuality "1"]
[TimeControl "40/5400+30:1800+30"]

{[%evp 16,127,20,12,21,22,24,-8,16,0,6,0,37,29,81,-20,-17,-15,-14,-16,-14,-19,0,0,0,-122,-117,-187,-192,-193,-145,-140,-127,-155,-129,-184,-181,-180,-173,-214,-159,-171,-102,-88,-96,-211,-224,-276,-225,-239,-231,-223,-199,-257,-276,-302,-321,-316,-286,-302,-288,-283,-128,-127,-99,-91,-89,-99,-99,-104,-109,-100,-76,-224,-220,-222,-222,-229,-36,-30,-35,-34,-33,-29,-8,-45,-43,-39,0,0,0,8,8,8,8,0,0,0,0,0,91,0,0,0,0,0,0,0,0,0,0,0,0,0]} 1. d4 {[%emt 0:00:03]} d5 {[%emt 0:00:01]} 2. c4 {[%emt 0:00:09]} c6 {[%emt 0:00:03]} 3. cxd5 {[%emt 0:00:04]} cxd5 {[%emt 0:00:03]} 4. Nc3 {[%emt 0:00:07]} Nf6 {[%emt 0:00:20]} 5. Bf4 {[%emt 0:00:10]} Nc6 {[%emt 0:00:08]} 6. Nf3 {[%emt 0:00:06]} Bf5 {[%emt 0:00:39]} 7. Qb3 {[%emt 0:02:11]} Na5 {[%emt 0:00:19]} 8. Qa4+ {[%emt 0:00:10]} Bd7 {[%emt 0:00:06]} 9. Qc2 {[%emt 0:00:12]} e6 $1 {[%emt 0:00:19] 9...e6 is better than 9...Rc8. D14: Slav Defence: Exchange variation with ...Bf5.} 10. e3 {[%emt 0:03:22]} Bb4 {[%emt 0:00:43] [#]} 11. a3 $146 {[%emt 0:26:31]} ({Predecessor:} 11. Bd3 Rc8 12. O-O O-O 13. Bg5 h6 14. Bh4 Be7 15. Rac1 Nc6 16. a3 Nh5 17. Bxe7 Qxe7 {1-0 (28) Dubov,D (2711)-Matlakov,M (2674) Chess.com INT 2022}) 11... Be7 {[%emt 0:03:08]} (11... Bxc3+ $5 12. bxc3 Rc8 $11) 12. Ne5 {[%emt 0:01:32]} Rc8 {[%emt 0:02:11]} 13. Bd3 {[%emt 0:01:23]} Nc4 {[%emt 0:06:15]} (13... Nh5 $5 {[%cal Rh5f4]}) 14. O-O {[%emt 0:03:28]} Nh5 {[%emt 0:26:23]} (14... Nxe5 $11 15. Bxe5 Qb6) 15. Qe2 {[%emt 0:05:51] White is more active.} (15. Nxd7 Qxd7 16. Be5 (16. Bxh7 g6 $17) 16... f6 17. Bxc4 Rxc4 $11) ({Better is} 15. Bxc4 $16 {Hoping for Bd3.} dxc4 16. Rad1 Nxf4 17. exf4) 15... Nxf4 $11 {[%emt 0:03:46]} 16. exf4 {[%emt 0:01:08][%cal Rd3c4]} Nxe5 {[%emt 0:05:14]} 17. fxe5 {[%emt 0:00:26]} Qb6 {[%emt 0:00:55]} 18. Qg4 {[%emt 0:24:01]} g5 {[%emt 0:04:29]} 19. Ne2 $1 {[%emt 0:04:52]} Qxb2 {[%emt 0:04:02]} 20. Qh5 {[%emt 0:03:12]} (20. Rab1 $11 Qxa3 21. Qg3) 20... Ba4 $1 $17 {[%emt 0:06:35]} (20... Bxa3 $2 21. Rfb1 Qd2 22. Rxa3 $18) 21. Rac1 {[%emt 0:09:11]} (21. Qf3 $17 Qd2 22. Rab1) 21... Rxc1 $19 {[%emt 0:04:50]} 22. Rxc1 {[%emt 0:00:03]} Qd2 {[%emt 0:02:12]} (22... Qxa3 $19 23. Rc3 Qb2) 23. Qf3 $17 {[%emt 0:02:26]} Kd7 {[%emt 0:07:42]} 24. h4 {[%emt 0:05:05]} h6 {[%emt 0:09:31]} 25. Bf5 {[%emt 0:02:18]} Bc6 $19 {[%emt 0:01:59] A strong pair of Bishops.} 26. Bg4 {[%emt 0:00:15]} Rf8 {[%emt 0:01:17]} 27. Qb3 {[%emt 0:02:53]} Qa5 {[%emt 0:01:39]} 28. Rc3 {[%emt 0:01:04]} f5 {[%emt 0:04:29]} ({Inferior is} 28... gxh4 29. Nf4 $17) (28... Qa4 $19 {aiming for ...Qxb3.} 29. Qb1 Bxa3) 29. exf6 $17 {[%emt 0:00:06]} Rxf6 {[%emt 0:00:02]} ({Of course not} 29... Bxf6 $6 30. Qc2 $11) 30. Bf3 {[%emt 0:01:24]} (30. h5 $17 {was worth a try.}) 30... gxh4 $19 {[%emt 0:01:13][%cal Oh4h3]} 31. Nc1 {[%emt 0:01:14]} Qb6 {[%emt 0:01:08]} 32. Qxb6 {[%emt 0:00:22]} axb6 {[%emt 0:00:03]} 33. Nd3 {[%emt 0:00:21]} Bd6 {[%emt 0:00:19]} 34. Bg4 {[%emt 0:00:43]} (34. Rb3 $142) 34... Bb5 {[%emt 0:00:43]} 35. f3 {[%emt 0:01:00]} Rf8 {[%emt 0:01:26]} 36. Nb4 {[%emt 0:00:33]} Bc4 {[%emt 0:01:51]} 37. Re3 {[%emt 0:00:04]} Rf6 {[%emt 0:01:01]} 38. Nd3 {[%emt 0:00:10]} Bxd3 {[%emt 0:00:42]} (38... b5 $19 {and Black stays clearly on top. And now ...Kc7 would win.} 39. Kf2 Bg3+ 40. Kg1 Kd6) 39. Rxd3 {[%emt 0:00:03][%mdl 4096] Endgame KRB-KRB} Bf4 {[%emt 0:01:03]} 40. Kf1 {[%emt 0:01:34]} Kc6 {[%emt 0:01:04]} 41. Rc3+ {[%emt 0:07:20]} Kb5 $1 {[%emt 0:02:16]} 42. Ke2 {[%emt 0:00:34]} Ka4 {[%emt 0:04:49]} 43. Kd3 {[%emt 0:02:21]} b5 {[%emt 0:05:53]} 44. Rc8 {[%emt 0:03:47]} (44. Rc2 $17 {might work better.}) 44... Kxa3 {[%emt 0:03:11] Strongly threatening ...b4.} 45. Ra8+ {[%emt 0:00:06] [#]} Kb2 $1 {[%emt 0:01:41]} 46. Re8 {[%emt 0:02:03]} e5 $2 {[%emt 0:08:19]} (46... Rf7 $19 {White must now prevent ...Rc7.} 47. Bxe6 Rg7) 47. dxe5 $15 {[%emt 0:00:46]} Rc6 {[%emt 0:01:13]} 48. Kd4 $1 {[%emt 0:06:48]} Rc2 {[%emt 0:00:43]} 49. Kxd5 {[%emt 0:00:40]} Rxg2 {[%emt 0:00:48]} 50. Ke4 {[%emt 0:01:46]} (50. Rf8 $5 {[%cal Rf8f4]} Bg5 51. Rf7 $15) 50... Bd2 {[%emt 0:03:48]} 51. Rb8 {[%emt 0:02:21]} Rg3 {[%emt 0:01:53] Threatens to win with ...h3.} 52. Rxb7 {[%emt 0:00:21]} h3 {[%emt 0:00:40]} 53. Rxb5+ {[%emt 0:00:21]} Kc2 {[%emt 0:00:25]} 54. e6 {[%emt 0:04:25]} Bg5 {[%emt 0:00:51]} 55. Bxh3 {[%emt 0:01:46]} Rxh3 $11 {[%emt 0:00:13] KRB-KR} 56. f4 {[%emt 0:00:55]} Be7 {[%emt 0:00:44]} 57. Rb7 {[%emt 0:00:56]} Ba3 {[%emt 0:00:38] [#]} (57... Bh4 $11) 58. Rc7+ {[%emt 0:00:39]} (58. f5 $1 $16 {[%cal Rf5f6]}) 58... Kd2 $1 {[%emt 0:00:28] The position is equal.} 59. Rd7+ {[%emt 0:00:37]} Ke2 {[%emt 0:00:19]} 60. f5 {[%emt 0:00:43]} Rh4+ {[%emt 0:00:44]} 61. Ke5 {[%emt 0:00:49] e7 is the strong threat.} Ke3 {[%emt 0:00:28]} 62. Kf6 {[%emt 0:00:39]} Re4 {[%emt 0:00:42]} 63. Kf7 {[%emt 0:00:44]} h5 {[%emt 0:00:46]} 64. f6 {[%emt 0:00:38] And White is the lucky defender.  Weighted Error Value: White=0.26 (precise) /Black=0.21 (precise)} 1/2-1/2

[Event "Germany Countries-chT Youth 2022"]
[Site "Wiesbaden"]
[Date "2022.10.02"]
[Round "3"]
[White "Bosselmann, Tom Linus"]
[Black "Schneider, Jana"]
[Result "1/2-1/2"]
[ECO "C36"]
[WhiteElo "2061"]
[BlackElo "2323"]
[Annotator "TA"]
[PlyCount "101"]
[EventDate "2022.09.28"]
[EventType "team-tourn"]
[EventRounds "7"]
[EventCountry "GER"]
[SourceTitle "playchess.com"]
[Source "ChessBase"]
[SourceQuality "1"]
[TimeControl "40/5400+30:1800+30"]

{[%evp 16,101,-21,-34,-12,-21,-17,-20,-10,0,0,0,0,0,27,20,36,19,54,65,58,57,75,85,166,100,160,81,85,69,96,99,462,441,707,747,737,719,1833,1715,1741,275,269,91,61,10,29,15,9,6,204,59,41,47,178,76,81,19,12,0,0,0,0,0,0,0,0,-32,-27,-32,-26,-26,0,-36,-36,-45,-11,-12,-7,-7,-8,-12,0,-8,-8,-8,-13,-16]} 1. e4 {[%emt 0:00:03]} e5 {[%emt 0:00:41]} 2. f4 {[%emt 0:00:05]} exf4 {[%emt 0:00:16]} 3. Nf3 {[%emt 0:00:06]} d5 {[%emt 0:01:04]} 4. exd5 {[%emt 0:00:08]} Nf6 {[%emt 0:00:08]} 5. Bb5+ {[%emt 0:01:25]} c6 {[%emt 0:00:10]} 6. dxc6 {[%emt 0:00:06]} Nxc6 {[%emt 0:00:06]} 7. d4 {[%emt 0:01:16]} Bd6 {[%emt 0:00:33][%cal Bf8d6,Bd6c7,Bc7b6][%mdl 32]} 8. O-O {[%emt 0:00:22]} O-O {[%emt 0:00:35]} 9. Nbd2 {[%emt 0:01:31] 9.c3 is more fashionable.} Bc7 {[%emt 0:10:40] C36: King's Gambit Accepted: 3 Nf3 d5.} 10. c3 {[%emt 0:01:14]} Bg4 {[%emt 0:06:49]} 11. Bd3 {[%emt 0:05:52]} Re8 {[%emt 0:07:16]} 12. Re1 {[%emt 0:09:42]} Qd5 {[%emt 0:03:51] [#]} 13. Rxe8+ $146 {[%emt 0:16:21]} ({Predecessor:} 13. Qb3 Qxb3 14. axb3 Bxf3 15. Nxf3 Rxe1+ 16. Nxe1 g5 17. Bd2 Bb6 18. b4 Ne5 19. Bf5 {1-0 (41) Kosmo,S (2186)-Varnam,L (2089) Porto Carras 2018}) 13... Rxe8 {[%emt 0:00:07]} 14. Qb3 {[%emt 0:01:14]} Bb6 {[%emt 0:14:26]} 15. Qxd5 {[%emt 0:09:40]} Nxd5 {[%emt 0:00:07]} 16. Ne4 {[%emt 0:02:36]} Re7 {[%emt 0:16:19]} 17. Bd2 {[%emt 0:06:49]} (17. Kf2 {seems wilder.} f6 18. a4 Kf8 19. Bd2) 17... h6 {[%emt 0:01:06]} 18. Re1 {[%emt 0:01:41]} Bxf3 {[%emt 0:06:05]} 19. gxf3 {[%emt 0:00:37]} g5 {[%emt 0:00:30]} (19... Rd7 $16) 20. Kg2 {[%emt 0:00:30]} (20. Nd6 $18) 20... Bc7 {[%emt 0:00:30]} (20... Kf8 $142) 21. b4 {[%emt 0:00:30]} (21. h4 $142 $1) 21... Kg7 {[%emt 0:00:30]} 22. b5 {[%emt 0:00:30]} Nd8 {[%emt 0:00:30]} 23. c4 {[%emt 0:00:30]} Nf6 {[%emt 0:00:30][%mdl 8192]} (23... Ne3+ $16 24. Bxe3 fxe3) 24. Bb4 $18 {[%emt 0:00:30]} Rd7 {[%emt 0:00:30]} (24... Ng8 $142 25. Bxe7 Nxe7 26. Nxg5 Nc8) 25. Nxf6 {[%emt 0:00:30]} Kxf6 {[%emt 0:00:30]} 26. Bc3 {[%emt 0:00:30] Threatening mate with d5+.} Re7 {[%emt 0:00:30]} 27. d5+ {[%emt 0:00:30]} Be5 {[%emt 0:00:30]} 28. Bb4 $2 {[%emt 0:00:30]} (28. Rxe5 Rxe5 29. c5) 28... Rd7 {[%emt 0:00:30]} 29. Be4 $2 {[%emt 0:00:30]} (29. Bf8 $18 {and White stays clearly on top.}) 29... b6 $16 {[%emt 0:00:30]} 30. c5 {[%emt 0:00:30]} (30. d6 $14) 30... bxc5 $11 {[%emt 0:00:30]} 31. Bxc5 {[%emt 0:00:30]} Rc7 {[%emt 0:00:30]} 32. Bf2 {[%emt 0:00:30]} Ke7 $2 {[%emt 0:00:30]} (32... Rc4 $1 $11) 33. b6 {[%emt 0:00:30]} ({Better is} 33. a4 $18) 33... axb6 $14 {[%emt 0:00:30]} 34. Bxb6 {[%emt 0:00:30]} Rd7 {[%emt 0:00:30] [#]} (34... Rc3 $1 $14) 35. Bc5+ {[%emt 0:00:30]} (35. a4 $1 $18 {[%cal Ra4a5]}) 35... Kf6 $16 {[%emt 0:00:30] [#]} 36. Rb1 {[%emt 0:00:30]} (36. a4 $1 $16) 36... Nb7 $1 $11 {[%emt 0:00:30]} 37. Rb6+ {[%emt 0:00:30]} Kg7 {[%emt 0:00:30]} 38. Bb4 {[%emt 0:00:30] Bf5 is the strong threat. A strong pair of Bishops.} Nd6 {[%emt 0:00:30] Against Bf5} 39. Bd3 {[%emt 0:00:30]} Nc8 {[%emt 0:00:30][%csl LRb6,LRd5]} 40. Rb5 {[%emt 0:00:30]} Ne7 {[%emt 0:00:30]} 41. d6 {[%emt 0:30:30]} Bxd6 {[%emt 0:30:30]} 42. Bc3+ {[%emt 0:00:30]} f6 {[%emt 0:00:30][%cal Od6e5] White must now prevent ...Be5!} 43. Be4 {[%emt 0:00:30]} Ra7 {[%emt 0:00:30]} (43... Rc7 $5 {[%cal Rc7c3]} 44. Bd4 Rc4 $15) 44. Ra5 {[%emt 0:00:30]} (44. Rb6 $5 {[%cal Rb6d6]} Rxa2+ 45. Kh3 $15) 44... Rc7 {[%emt 0:00:30]} 45. Bb2 {[%emt 0:00:30]} Kf7 {[%emt 0:00:30]} 46. a4 {[%emt 0:00:30] The position is equal.} f5 {[%emt 0:00:30]} 47. Bd3 {[%emt 0:00:30]} Ke6 {[%emt 0:00:30]} 48. Rb5 {[%emt 0:00:30]} Nd5 {[%emt 0:00:30]} 49. Bxf5+ {[%emt 0:00:30][%mdl 64] Decoy} Kxf5 {[%emt 0:00:30]} 50. Rxd5+ {[%emt 0:00:30]} Ke6 {[%emt 0:00:30]} 51. Rb5 {[%emt 0:00:30] Black defended with fortune.  Weighted Error Value: White=0.35/Black=0.33} 1/2-1/2